Cogmind - Beta 14 @@@ ROGUE MODE // 2025.03.30 @ 00:42:51 Player: Leech Result: Self-destructed Performance ------------- Evolutions (2) 1000 Regions Visited (5) 1000 Robots Destroyed (18) 90 Value Destroyed (471) 471 Prototype IDs (23) 460 Alien Tech Used (0) 0 Bonus (300) 300 TOTAL SCORE: 3321 Bonus ------- Aligned with FarCom 300 Cogmind --------- Core Integrity 349/550 Matter 290/300 Energy 98/100 System Corruption 7% Temperature Cool (0) Movement Hovering (120) Ox1 Location -8/Materials Parts ------- > --- POWER (1) -------- (None) > --- PROPULSION (3) --- Airjet > --- UTILITY (5) ------ Medium Storage Unit Targeting Computer Advanced Targeting Computer ECM Suite > --- WEAPON (2) ------- Assault Rifle > --- INVENTORY (10) --- Light Nuclear Core Improved Hover Unit Reaction Control System Medium Armor Plating System Shield Light Assault Rifle Grenade Launcher Peak State ------------ > --- POWER ------------ Light Deuterium Engine > --- PROPULSION ------- Airjet Airjet Airjet > --- UTILITY ---------- Medium Storage Unit Targeting Computer Advanced Targeting Computer ECM Suite Medium Armor Plating > --- WEAPON ----------- Assault Cannon Scythe > --- INVENTORY -------- Light Nuclear Core Light Nuclear Core Improved Hover Unit Airjet Reaction Control System Medium Armor Plating System Shield Assault Rifle Light Assault Rifle Grenade Launcher [Rating: 28] Favorites ----------- Power Light Ion Engine Engine Light Ion Engine Power Core Light Nuclear Core Propulsion Aluminum Leg Leg Aluminum Leg Hover Unit Airjet Utility Medium Storage Unit Device ECM Suite Storage Medium Storage Unit Processor Targeting Computer Protection Medium Armor Plating Weapon Assault Rifle Energy Gun Small Laser Ballistic Gun Assault Rifle Ballistic Cannon Assault Cannon Launcher Grenade Launcher Special Weapon Mining Laser Slashing Weapon Scythe Build | -11 -10 -10 -10 -9 -8 ------- Run | Yrd Mat Min Exi Min Mat Slots Evolved 4 | . . . . . 4 Power . | . . . . . . Propulsion 1 | . . . . . 1 Utility 3 | . . . . . 3 Weapon . | . . . . . . Parts Attached 37 | 7 4 5 . . 21 Power 6 | 1 1 1 . . 3 Engine 5 | 1 1 1 . . 2 Core 1 | . . . . . 1 Reactor . | . . . . . . Propulsion 9 | 2 . 1 . . 6 Treads . | . . . . . . Leg 4 | 2 . 1 . . 1 Wheel . | . . . . . . Hover 5 | . . . . . 5 Flight . | . . . . . . Utility 9 | 1 3 . . . 5 Device 2 | . 2 . . . . Storage 2 | 1 1 . . . . Processor 3 | . . . . . 3 Hackware . | . . . . . . Protection 2 | . . . . . 2 Artifact . | . . . . . . Weapon 13 | 3 . 3 . . 7 Energy Gun 1 | 1 . . . . . Energy Cannon . | . . . . . . Ballistic Gun 7 | 2 . 2 . . 3 Ballistic Cannon 1 | . . . . . 1 Launcher 2 | . . 1 . . 1 Special Weapon 1 | . . . . . 1 Impact Weapon . | . . . . . . Slashing Weapon 1 | . . . . . 1 Piercing Weapon . | . . . . . . Special Melee Weapon . | . . . . . . Unidentified Prototypes . | . . . . . . Parts Lost 10 | . . . . . 10 Power 2 | . . . . . 2 Propulsion 4 | . . . . . 4 Utility 2 | . . . . . 2 Weapon 2 | . . . . . 2 Highest Loss Streak 8 | . . . . . 8 To Critical Strikes . | . . . . . . Average Slot Usage (%) 98 | . 97 100 100 100 97 Engine 11 | . 14 14 14 14 8 Leg 18 | . 28 28 28 28 8 Hover 8 | . . . . . 18 Device 11 | . 11 14 14 14 9 Storage 11 | . 14 14 14 14 9 Processor 10 | . . . . . 21 Protection 1 | . . . . . 3 Ballistic Gun 19 | . 28 27 28 28 10 Ballistic Cannon 2 | . . . . . 4 Slashing Weapon 1 | . . . . . 2 Peak Build Rating 28 | 6 8 8 8 8 28 Average Rating 14 | 4 7 8 8 8 21 On Entrance 6 | . 6 8 8 8 8 Naked Turns . | . . . . . . Heaviest Build 35 | 12 19 19 19 19 35 Greatest Support 30 | 20 20 20 20 20 30 Greatest Overweight (x) 3 | . . . . . 3 Average Overweight (x) . | . . . . . . Largest Inventory Capacity 10 | 8 10 10 10 10 10 Average Capacity 9 | 7 9 10 10 10 10 Most Carried 10 | 4 10 10 10 10 10 Average Carried 9 | 2 7 10 10 10 9 Final Capacity 10 | 8 10 10 10 10 10 Final Carried 10 | 4 10 10 10 10 7 Class Distribution -------------------- 100% | Mutant Dominant Class ---------------- Mutant | -10/Materials Mutant | -10/Mines Mutant | -10/Exiles Mutant | -9/Mines Mutant | -8/Materials Resources | -11 -10 -10 -10 -9 -8 ----------- Run | Yrd Mat Min Exi Min Mat Matter Collected 868 | 166 240 80 . 45 337 Remotely . | . . . . . . Salvage Created 595 | . 251 103 . . 241 Parts 50 | . 25 8 . . 17 Haulers Intercepted 2 | . 2 . . . . Recyclers Shooed 1 | . 1 . . . . Parts Field Recycled . | . . . . . . Retrieved Matter . | . . . . . . Parts Self-Destructed . | . . . . . . Prevented . | . . . . . . Kills | -11 -10 -10 -10 -9 -8 ------- Run | Yrd Mat Min Exi Min Mat Combat Hostiles Destroyed 13 | . 5 4 . . 4 Guns 10 | . 5 2 . . 3 Cannons 1 | . . . . . 1 AOE 2 | . . 2 . . . Classes Destroyed 7 | . 4 . . . 3 Worker 1 | . . . . . 1 Hauler 2 | . 2 . . . . Recycler 1 | . . . . . 1 Watcher 1 | . 1 . . . . Swarmer 3 | . 3 . . . . Grunt 8 | . 2 4 . . 2 Sentry 2 | . . . . . 2 Best Kill Streak 3 | . 3 2 . . 2 Combat Bots Only 3 | . 3 2 . . 2 Max Kills in Single Turn 1 | . 1 1 . . 1 Gunslinging . | . . . . . . Exploded 1 | . . 1 . . . Melee . | . . . . . . Uniques/NPCs Destroyed . | . . . . . . Combat | -11 -10 -10 -10 -9 -8 -------- Run | Yrd Mat Min Exi Min Mat Hostile Shots Fired 89 | . 18 17 . . 54 Missed 21 | . 1 6 . . 14 Damage Taken 1368 | . 157 160 . . 1051 Core 259 | . 23 35 . . 201 Absorbed by Shields . | . . . . . . Core Remaining (%) 88 | 100 . . . 76 . Volleys Fired 50 | . 18 9 . . 23 Largest 2 | . 2 2 . . 2 Hottest 100 | . 40 50 . . 100 Shots Fired 96 | . 36 18 . . 42 Gun 78 | . 36 14 . . 28 Cannon 9 | . . . . . 9 Launcher 4 | . . 4 . . . Special 5 | . . . . . 5 Kinetic 87 | . 36 14 . . 37 Thermal 5 | . . . . . 5 Explosive 4 | . . 4 . . . Electromagnetic . | . . . . . . Robot Hit Streak 17 | . 11 17 . . 17 Robot Miss Streak 3 | . 3 . . . 1 Penetration Max . | . . . . . . Secondary Targets . | . . . . . . Shots Hit Robots 69 | . 22 16 . . 31 Core Hits 35 | . 12 9 . . 14 Critical Kills . | . . . . . . Critical Parts Destroyed 1 | . . 1 . . . Critical Strikes 2 | . . 1 . . 1 Destroy 1 | . . 1 . . . Blast 1 | . . . . . 1 Melee Attacks 7 | . . . . . 7 Impact . | . . . . . . Slashing 7 | . . . . . 7 Piercing . | . . . . . . Sneak Attacks 1 | . . . . . 1 Combat Hostiles . | . . . . . . Follow-up Attacks . | . . . . . . Damage Inflicted 1150 | . 278 380 . . 492 Guns 724 | . 278 179 . . 267 Cannons 161 | . . . . . 161 Explosions 201 | . . 201 . . . Melee 64 | . . . . . 64 Ramming . | . . . . . . Kinetic 885 | . 278 179 . . 428 Thermal . | . . . . . . Explosive 201 | . . 201 . . . Electromagnetic . | . . . . . . Impact . | . . . . . . Slashing 64 | . . . . . 64 Piercing . | . . . . . . Highest Corruption 7 | . . . . . 7 Average Corruption 7 | . . . . . 7 Corruption Purged . | . . . . . . Corruption Blocked . | . . . . . . Effects 20 | . . . . . 20 Message Errors 8 | . . . . . 8 Matter Fused 3 | . . . . . 3 Energy Discharges 3 | . . . . . 3 Data Loss (minor) 3 | . . . . . 3 Misfires 2 | . . . . . 2 Weapon Failures 1 | . . . . . 1 Overload Shots . | . . . . . . Overflow Damage 7 | . . 7 . . . Projectiles . | . . . . . . Explosions 7 | . . 7 . . . Melee . | . . . . . . Knockbacks . | . . . . . . Impact . | . . . . . . Kinetic . | . . . . . . Secondary . | . . . . . . Self-Inflicted Damage 3 | . . 3 . . . Shots 1 | . . 1 . . . Rammed . | . . . . . . Targets Rammed . | . . . . . . Kicked . | . . . . . . Crushed . | . . . . . . Highest Temperature 43 | . . 8 . . 43 Average Temperature 8 | . . 3 . . 9 Received Heat Transfer 345 | . 54 84 . . 207 Siege Activations . | . . . . . . Robots Corrupted . | . . . . . . Combat Hostiles . | . . . . . . Parts Fried . | . . . . . . Impact Corruptions . | . . . . . . Robots Melted . | . . . . . . Combat Hostiles . | . . . . . . Parts Melted . | . . . . . . Heat Transferred . | . . . . . . Parts Sabotaged . | . . . . . . Parts Stolen . | . . . . . . Parts Stripped . | . . . . . . Power Chain Reactions . | . . . . . . Alert | -11 -10 -10 -10 -9 -8 ------- Run | Yrd Mat Min Exi Min Mat Peak Influence 183 | . 174 183 . . 60 Initial 67 | . . 67 . . . Average 47 | . 85 134 . . 18 Maximum Alert Level . | . . . . . . Low Security (%) 100 | 100 100 100 . 100 100 Level 1 . | . . . . . . Level 2 . | . . . . . . Level 3 . | . . . . . . Level 4 . | . . . . . . Level 5 . | . . . . . . High Security . | . . . . . . Max Security . | . . . . . . Squads Dispatched 5 | . 2 . . . 3 Investigation 3 | . 2 . . . 1 Extermination . | . . . . . . Reinforcement 2 | . . . . . 2 Assault . | . . . . . . Garrison . | . . . . . . Intercept . | . . . . . . Searches Triggered . | . . . . . . Construction Impeded . | . . . . . . Haulers Reinforced . | . . . . . . Active Scanning Responses . | . . . . . . Cargo Convoy Interrupts . | . . . . . . Stealth | -11 -10 -10 -10 -9 -8 --------- Run | Yrd Mat Min Exi Min Mat Distress Signals 1 | . . . . . 1 Communications Jammed . | . . . . . . Distress Signals . | . . . . . . Times Spotted 30 | . 6 6 . . 18 Peak Tracking Total 8 | . 3 2 . . 8 Tactical Retreats 6 | . . 1 . . 5 Traps | -11 -10 -10 -10 -9 -8 ------- Run | Yrd Mat Min Exi Min Mat Traps Triggered 3 | . 2 . . . 1 Indirectly . | . . . . . . Trap Hack Attempts . | . . . . . . Triggered . | . . . . . . Disarmed . | . . . . . . Reprogrammed . | . . . . . . Reused . | . . . . . . Traps Extracted . | . . . . . . Installed . | . . . . . . Triggered . | . . . . . . Machines | -11 -10 -10 -10 -9 -8 ---------- Run | Yrd Mat Min Exi Min Mat Machines Disabled . | . . . . . . Max in Single Turn . | . . . . . . Machines Repaired . | . . . . . . Machines Dismantled . | . . . . . . Machines Sabotaged . | . . . . . . Overloaded Fab Kills . | . . . . . . Hacking | -11 -10 -10 -10 -9 -8 --------- Run | Yrd Mat Min Exi Min Mat Machines Accessed 5 | . 4 . 1 . . Terminals 4 | . 4 . . . . Fabricators . | . . . . . . Repair Stations . | . . . . . . Recycling Units . | . . . . . . Scanalyzers . | . . . . . . Garrison Access . | . . . . . . Total Hacks 14 | . 13 . 1 . . Successful 7 | . 6 . 1 . . Failed 7 | . 7 . . . . Catastrophic . | . . . . . . Database Lockouts . | . . . . . . Manual 14 | . 13 . 1 . . Terminals 13 | . 13 . . . . Fabricators . | . . . . . . Repair Stations . | . . . . . . Recycling Units . | . . . . . . Scanalyzers . | . . . . . . Garrison Access . | . . . . . . Terminal Hacks 4 | . 3 . 1 . . Robot Analysis 2 | . 2 . . . . Branch Access Points 1 | . 1 . . . . Derelict Proto ID Bank 1 | . . . 1 . . Fabricator Hacks . | . . . . . . Repair Station Hacks . | . . . . . . Recycling Unit Hacks . | . . . . . . Scanalyzer . | . . . . . . Garrison Access Hacks . | . . . . . . Unauthorized Hacks 3 | . 3 . . . . Terminals 3 | . 3 . . . . Botnet 2 | . 2 . . . . Operators 1 | . 1 . . . . Fabricators . | . . . . . . Repair Stations . | . . . . . . Recycling Units . | . . . . . . Scanalyzers . | . . . . . . Garrison Access . | . . . . . . Data Cores Recovered . | . . . . . . Used . | . . . . . . Hacking Detections 4 | . 4 . . . . Full Trace Events . | . . . . . . Feedback Events . | . . . . . . Feedback Blocked . | . . . . . . Robot Schematics Acquired . | . . . . . . Robots Built . | . . . . . . Authchips . | . . . . . . Time . | . . . . . . Total Robot Build Rating . | . . . . . . Part Schematics Acquired . | . . . . . . Parts Built . | . . . . . . Authchips . | . . . . . . Time . | . . . . . . Total Part Build Rating . | . . . . . . Parts Repaired . | . . . . . . Time . | . . . . . . Parts Recycled . | . . . . . . Recycled Matter . | . . . . . . Retrieved Matter . | . . . . . . Retrieved Components . | . . . . . . Parts Scanalyzed . | . . . . . . Part Schematics Acquired . | . . . . . . Parts Damaged . | . . . . . . Bothacking | -11 -10 -10 -10 -9 -8 ------------ Run | Yrd Mat Min Exi Min Mat Used RIF Installer . | . . . . . . Robots Hacked . | . . . . . . Non-combat . | . . . . . . Combat . | . . . . . . Robot Hacks Applied . | . . . . . . Relay Couplers Released . | . . . . . . Fabnet Peak Effective % . | . . . . . . Robots Rewired . | . . . . . . Allies Hacked . | . . . . . . Hacks Repelled . | . . . . . . Allies | -11 -10 -10 -10 -9 -8 -------- Run | Yrd Mat Min Exi Min Mat Total Allies . | . . . . . . Largest Group . | . . . . . . Highest-Rated Group . | . . . . . . Highest-Rated Ally . | . . . . . . Total Orders . | . . . . . . Ally Attacks . | . . . . . . Total Damage . | . . . . . . Kills . | . . . . . . Allies Corrupted . | . . . . . . Allies Melted . | . . . . . . Intel | -11 -10 -10 -10 -9 -8 ------- Run | Yrd Mat Min Exi Min Mat Robot Analysis Total 2 | . 2 . . . . Derelict Logs Recovered 1 | . . 1 . . . Drone Launches . | . . . . . . Drone Recoveries . | . . . . . . Exploration | -11 -10 -10 -10 -9 -8 ------------- Run | Yrd Mat Min Exi Min Mat Turns Passed 2586 | 66 380 375 361 196 1208 Spaces Moved 1675 | 47 243 272 301 164 648 Core 6 | 6 . . . . . Treads . | . . . . . . Legs 1113 | 41 243 272 301 164 92 Wheels . | . . . . . . Hover 556 | . . . . . 556 Flight . | . . . . . . Fastest Speed 50 | 50 120 120 120 120 52 Average Speed 117 | 111 120 120 120 120 113 Slowest Speed 260 | 120 120 120 120 120 260 Overloaded Moves . | . . . . . . Propulsion Burnouts . | . . . . . . Robots Hopped . | . . . . . . Cave-ins Triggered 1 | . . . . . 1 Exploration Rate (%) 42 | 4 37 48 70 58 39 Regions Visited 5 Branch Regions 3 Pre-discovered Areas 1 | . . . . 1 . Known Exits Taken 2 | . 1 1 . . . Unknown Exits Taken 3 | 1 . . 1 1 . Scrap Searched 2 | . . 1 . 1 . Spaces Dug 10 | . . . . . 10 Terrain Destroyed 37 | . . 26 . . 11 Melee 6 | . . . . . 6 Projectile 5 | . . . . . 5 AOE 26 | . . 26 . . . Terrain Rammed . | . . . . . . Walls Destroyed . | . . . . . . Machines Disabled . | . . . . . . Actions | -11 -10 -10 -10 -9 -8 --------- Run | Yrd Mat Min Exi Min Mat Total 2178 | 57 297 303 301 163 1057 Wait 371 | . 20 12 1 . 338 Move 1669 | 46 242 271 300 163 647 Hop . | . . . . . . Pick Up 24 | 4 8 1 . . 11 Fast Attach 10 | 6 2 . . . 2 Attach 7 | . . . . . 7 Detach . | . . . . . . Swap 20 | 1 2 5 . . 12 Drop 17 | . 5 3 . . 9 Fire 50 | . 18 9 . . 23 Melee 7 | . . . . . 7 Ram . | . . . . . . Kick . | . . . . . . Crush . | . . . . . . Escape Stasis 1 | . . . . . 1 Rewire 2 | . . 2 . . . Trap . | . . . . . . Miscellaneous . | . . . . . . Route ------- -11/Scrapyard -10/Materials (discovered 3 exits: [*Mat] / *Min x2) -10/Mines -10/Exiles -9/Mines -8/Materials (discovered 1 exit: [*Fac]) History --------- Turn | Location | Event 7 | -11/Scrapyard | Discovered new exit (range 16) 67 | -11/Scrapyard | Entered Materials 138 | -10/Materials | Identified exit to Mines 301 | -10/Materials | Build established: Mutant 353 | -10/Materials | Discovered new exit (range 12) 447 | -10/Materials | Entered Mines 547 | -10/Mines | Received a Rocket Launcher from a helpful Derelict 597 | -10/Mines | Identified exit to Exiles 816 | -10/Mines | Deemed a non-threat by the Exiles lab entrance 822 | -10/Mines | Entered Exiles 851 | -10/Exiles | Met 8R-AWN 875 | -10/Exiles | Met EX-HEX 911 | -10/Exiles | Met EX-BIN 924 | -10/Exiles | Aligned with FarCom system 926 | -10/Exiles | Given EX-Vault access code 960 | -10/Exiles | Opened EX-Vault 990 | -10/Exiles | Warned to stay clear of 0b10 Research branches 1029 | -10/Exiles | Met EX-DEC 1168 | -10/Exiles | Discovered new exit (range 14) 1183 | -10/Exiles | Entered Mines 1219 | -9/Mines | Met a Derelict bent on vengeance 1356 | -9/Mines | Learned location of Storage (-9) 1369 | -9/Mines | Discovered new exit (range 7) 1379 | -9/Mines | Entered Materials 1379 | -8/Materials | Evolved 4 slots: Propulsion x1, Utility x3 2056 | -8/Materials | Crushed by falling debris 2550 | -8/Materials | Discovered new exit (range 16) 2587 | -8/Materials | Self-destructed Last Messages --------------- R-06 Scavenger collects Lgt. Ion Engine. System corrupted: Matter fused (-10). EXIT=FOUND Penetrated by Slug. Lgt. Deuterium Engine destroyed. Med. Armor Plating destroyed. Airjet destroyed. Critical hit (Blast). Knocked back. Scythe destroyed. ALERT: Suspicious intruders detected, dispatching Cutter reinforcements to area. U-05 Engineer builds a Wall. Airjet destroyed. Knocked back. Assault Cannon destroyed. Knocked back. The unstable cave ceiling collapses. W-25 Informer sends out distress signal. Lgt. Nuclear Core destroyed. Map ----- +----------------------------------------------------+ | | | | | | | | | | | | | ?????????????????????????????????????####### | | ?????????????????????????????????????# | | ?????????????????????????????????????# "" !! | | ?????????????????????????????????????# "T !! | | ???????????????????? ????########???# "" ! | | ???????????????????? #???# ! #??## | | ??????????????????? =#???# [ ####"###+## | | ?????????????????""" #???# + | | ???????????????? """ #???# ! ######## ## | | ?????????????????""" #???# = ###????#%#? | | ????????????????? ##### ] ##?????# #? | | ????????????###### #####+########## ? | | ????????????# % [ | | ????????????# < H | | ????????????# Y % | | ?????????######## # # ############### | | ?????????# *! # ##h###???????????## | | ?????????# *! #????????????? | | ?????????# *! ccc #????????????? | | ????????????????# @ "Y" #????????????? | | ????????????????# # """ #????????????? | | ????????????????#% # #????????????? | | ????????????????# #########????????????? | | ????????????????# #?????????????????????## | | ????????????????# #??????????????????????? | | ????????????????+ w #??????????????????????? | | ????????????????# ??????????????????????? | | ????????????????# k ??????????????????????? | | ????????????????# ??????????????????????? | | ????????????????# #??????????????????????? | | ????????????????# ???????????????????????? | | ????????????????# ???Y???????????????????? | | ????????????????# t???????????????????????? | | ????????????????# ???????????????????????? | | ????????????????? ???????????????????????? | | ???????????????????????????????????????????? | | ???????????????????????????????????????????? | | ???????????????????????????????????????????? | | ???????????????????????????????????????????? | | ???????????????????????????????????????????? | | ???????????????????????????????????????????? | | ???????????????????????????????????????????? | | ???????????????????????????????????????????? | | ???????????????????????????????????????????? | +----------------------------------------------------+ Best States ------------- Heat Dissipation 31 Energy Generation 14 Energy Capacity 275 Matter Stores 300 Matter Capacity 300 Sight Range 16 Terrain Scan Density 10 ECM Strength 1 Armor Coverage 225 Evasion (%) 55 Targeting Accuracy 18 Item Schematics ----------------- None Robot Schematics ------------------ None Fabricated ------------ Nothing Alien Tech Used ----------------- None Achievements -------------- None Challenges ------------ None Game ------ Seed AntimissileVoltaicArray Manual? 0 Play Time 00:22:56 Cumulative 21.0 hours Start 2025.03.16 @ 17:13:01 End 2025.03.30 @ 00:42:51 Sessions 3 Manual Loads 0 Difficulty Rogue Special Mode None Game No. 27 Rogue 27 Adventurer 0 Explorer 0 Win Type - Total 0 Types 0/0/0/0/0/0/0/0/0 Lore% 9 Gallery% 20 Achievement% 19 Wizard Run 0 Options --------- Layout 1 ASCII 0 Keyboard 1 Movement Numpad Keybinds 0 Fullscreen 1 Font 32/SmallcapsGlow Map View 50x35 Zoom Use 0% Tactical HUD 0 Map Filters NONE Filters NONE Steam 1 RUN: e520f436-6c66-404d-963f-d6e93bcaa2db